Workbook

Sheet Test Sheet 1
B2: Sheet 1
B6: 10000 | C6: =B6+1000 -> 11000 | D6: =C6+1000 -> 12000 | E6: 13000 | F6: 14000 | G6: 15000 | H6: 16000
B7: =B6+10000 -> 20000 | C7: =C6+10000 -> 21000 | D7: 22000 | E7: 23000 | F7: 24000 | G7: 25000 | H7: 26000
B8: =B7+10000 -> 30000 | C8: 31000 | D8: 32000 | E8: 33000 | F8: 34000 | G8: 35000 | H8: 36000
B9: 40000 | C9: 41000 | D9: 42000 | E9: 43000 | F9: 44000 | G9: 45000 | H9: 46000
B10: 50000 | C10: 51000 | D10: 52000 | E10: 53000 | F10: 54000 | G10: 55000 | H10: 56000
B11: 60000 | C11: 61000 | D11: 62000 | E11: 63000 | F11: 64000 | G11: 65000 | H11: 66000
B12: 70000 | C12: 71000 | D12: 72000 | E12: 73000 | F12: 74000 | G12: 75000 | H12: 76000

Sheet OtherTestSheet
B2: Sheet 2
B6: 1050 | C6: =B6+1000 -> 2050 | D6: =C6+1000 -> 3050 | E6: 4050 | F6: 5050 | G6: 6050 | H6: 7050
B7: =B6+10000 -> 11050 | C7: =C6+10000 -> 12050 | D7: 13050 | E7: 14050 | F7: 15050 | G7: 16050 | H7: 17050
B8: =B7+10000 -> 21050 | C8: 22050 | D8: 23050 | E8: 24050 | F8: 25050 | G8: 26050 | H8: 27050
B9: 31050 | C9: 32050 | D9: 33050 | E9: 34050 | F9: 35050 | G9: 36050 | H9: 37050
B10: 41050 | C10: 42050 | D10: 43050 | E10: 44050 | F10: 45050 | G10: 46050 | H10: 47050
B11: 51050 | C11: 52050 | D11: 53050 | E11: 54050 | F11: 55050 | G11: 56050 | H11: 57050
B12: 61050 | C12: 62050 | D12: 63050 | E12: 64050 | F12: 65050 | G12: 66050 | H12: 67050

Sheet Final Tests
B2: Sheet 3
B4: 10200 | C4: =B4+1000 -> 11200 | D4: =C4+1000 -> 12200 | E4: 13200 | F4: 14200 | G4: 15200 | H4: 16200
B5: =B4+10000 -> 20200 | C5: =C4+10000 -> 21200 | D5: 22200 | E5: 23200 | F5: 24200 | G5: 25200 | H5: 26200
B6: =B5+10000 -> 30200 | C6: 31200 | D6: 32200 | E6: 33200 | F6: 34200 | G6: 35200 | H6: 36200
B7: 40200 | C7: 41200 | D7: 42200 | E7: 43200 | F7: 44200 | G7: 45200 | H7: 46200
B8: 50200 | C8: 51200 | D8: 52200 | E8: 53200 | F8: 54200 | G8: 55200 | H8: 56200
B9: 60200 | C9: 61200 | D9: 62200 | E9: 63200 | F9: 64200 | G9: 65200 | H9: 66200
B10: 70200 | C10: 71200 | D10: 72200 | E10: 73200 | F10: 74200 | G10: 75200 | H10: 76200
